fUST/lending_fUST_20250130
["ID","MTS","AMOUNT","RATE_DAILY","PERIOD"]
[350906379,1738183847416,-596.57,0.00017123,2]
[350906381,1738183847425,-500.0,0.00017123,2]
[350906383,1738183847434,-500.0,0.00017123,2]
[350906385,1738183847444,-151.0,0.00017123,2]
[350906388,1738183847455,-500.0,0.00017123,2]
[350906389,1738183847464,-500.0,0.00017123,2]
[350906392,1738183847474,-639.45,0.00017123,2]
[350906394,1738183847484,-746.85,0.00017123,2]
[350906396,1738183847494,-500.0,0.00017123,2]
[350906398,1738183847503,-510.04,0.00017123,2]
[350906399,1738183847513,-500.0,0.00017123,2]
[350906401,1738183847522,-500.0,0.00017123,2]
[350906403,1738183847531,-1558.37,0.00017123,2]
[350906405,1738183847541,-251.226712,0.00017123,2]
[350906407,1738183847550,-500.0,0.00017123,2]
[350906410,1738183847560,-500.0,0.00017123,2]
[350906411,1738183847569,-535.11,0.00017123,2]
[350906414,1738183847579,-157.08218412,0.00017123,2]
[350906416,1738183847589,-3315.7,0.00017123,2]
[350906418,1738183847599,-151.0,0.00017123,2]
[350906420,1738183847609,-6033.6,0.00017123,2]
[350906422,1738183847619,-8526.14,0.00017123,2]
[350906424,1738183847628,-500.0,0.00017123,2]
[350906426,1738183847638,-523.18,0.00017123,2]
[350906428,1738183847650,-9708.38,0.00017123,2]
[350906430,1738183847659,-1316.49,0.00017123,2]
[350906432,1738183847669,-2933.43,0.00017123,2]
[350906434,1738183847678,-3883.59,0.00017123,2]
[350906436,1738183847687,-703.57,0.00017123,2]
[350906438,1738183847696,-2749.65,0.00017123,2]
[350906439,1738183847706,-500.0,0.00017123,2]
[350906441,1738183847715,-618.36,0.00017123,2]
[350906443,1738183847725,-500.0,0.00017123,2]
[350906446,1738183847735,-1156.66,0.00017123,2]
[350906448,1738183847744,-625.82,0.00017123,2]
[350906450,1738183847754,-500.0,0.00017123,2]
[350906452,1738183847764,-151.0,0.00017123,2]
[350906454,1738183847774,-151.0,0.00017123,2]
[350906456,1738183847783,-1866.12,0.00017123,2]
[350906458,1738183847794,-748.16,0.00017123,2]
[350906460,1738183847803,-728.59,0.00017123,2]
[350906462,1738183847813,-500.0,0.00017123,2]
[350906464,1738183847823,-200.75526,0.00017123,2]
[350906466,1738183847832,-545.33,0.00017123,2]
[350906468,1738183847841,-1683.36,0.00017123,2]
[350906470,1738183847851,-200.75526,0.00017123,2]
[350906472,1738183847861,-792.85,0.00017123,2]
[350906474,1738183847870,-2099.15,0.00017123,2]
[350906476,1738183847880,-736.87,0.00017123,2]
[350906478,1738183847889,-9012.02,0.00017123,2]
[350906479,1738183847901,-3107.3,0.00017123,2]
[350906481,1738183847911,-590.39,0.00017123,2]
[350906483,1738183847920,-18990.1694604,0.00017123,2]
[350906501,1738183848079,-8244.7,0.00017123,2]
[350906503,1738183848092,-1733.0605396,0.00017123,2]
[350906505,1738183848102,-222.636102,0.00017123,2]
[350906507,1738183848114,-2343.77,0.00017123,2]
[350906509,1738183848124,-1112.37,0.00017123,2]
[350906511,1738183848134,-500.0,0.00017123,2]
[350906513,1738183848146,-1533.44,0.00017123,2]
[350906514,1738183848157,-937.2,0.00017123,2]
[350906516,1738183848166,-500.0,0.00017123,2]
[350906518,1738183848176,-2567.3,0.00017123,2]
[350906521,1738183848186,-834.56,0.00017123,2]
[350906523,1738183848197,-243.269686,0.00017123,2]
[350906525,1738183848207,-1012.35,0.00017123,2]
[350906526,1738183848216,-889.07,0.00017123,2]
[350906528,1738183848226,-243.269686,0.00017123,2]
[350906530,1738183848236,-151.0,0.00017123,2]
[350906532,1738183848247,-873.94483355,0.00017123,2]
[350906535,1738183848259,-358.43516645,0.00017123,2]
[350906536,1738183848270,-1187.18,0.00017123,2]
[350906538,1738183848282,-500.0,0.00017123,2]
[350906540,1738183848292,-151.0,0.00017123,2]
[350906542,1738183848302,-1435.78,0.00017123,2]
[350906545,1738183848312,-500.0,0.00017123,2]
[350906546,1738183848322,-169.31534455,0.00017123,2]
[350906549,1738183848334,-557.44465545,0.00017123,2]
[350906551,1738183848344,-500.0,0.00017123,2]
[350906553,1738183848353,-1228.54,0.00017123,2]
[350906555,1738183848363,-500.0,0.00017123,2]
[350906557,1738183848372,-500.0,0.00017123,2]
[350906559,1738183848381,-151.0,0.00017175,3]
[350906561,1738183848391,-90.19332126,0.00017249,3]
[350906563,1738183848412,-150.0,0.0001669,2]
[350906565,1738183848422,-60.80667874,0.00017249,3]
[350906567,1738183848431,-500.0,0.0001726,2]
[350906569,1738183848441,-500.0,0.0001726,2]
[350906571,1738183848450,-500.0,0.0001726,2]
[350906573,1738183848459,-500.0,0.0001726,2]
[350906575,1738183848470,-500.0,0.0001726,2]
[350906577,1738183848479,-1026.64,0.0001726,2]
[350906579,1738183848489,-580.66241935,0.0001726,2]
[350906581,1738183848498,-500.0,0.0001726,2]
[350906583,1738183848508,-500.0,0.0001726,2]
[350906585,1738183848518,-515.74,0.0001726,2]
[350906587,1738183848528,-692.01,0.0001726,2]
[350906589,1738183848538,-649.35,0.0001726,2]
[350906591,1738183848547,-500.0,0.0001726,2]
[350906593,1738183848557,-500.0,0.0001726,2]
[350906595,1738183848566,-796.2,0.0001726,2]
[350906597,1738183848575,-1031.44,0.0001726,2]
[350906599,1738183848584,-500.0,0.0001726,2]
[350906601,1738183848593,-618.3,0.0001726,2]
[350906603,1738183848603,-585.3,0.0001726,2]
[350906605,1738183848612,-560.82,0.0001726,2]
[350906607,1738183848621,-596.57,0.0001726,2]
[350906609,1738183848631,-500.0,0.0001726,2]
[350906611,1738183848640,-500.0,0.0001726,2]
[350906613,1738183848654,-151.0,0.0001726,2]
[350906615,1738183848664,-500.0,0.0001726,2]
[350906617,1738183848673,-479.75632298,0.0001726,2]
[350906619,1738183848685,-20.24367702,0.0001726,2]
[350906621,1738183848698,-639.45,0.0001726,2]
[350906623,1738183848708,-746.85,0.0001726,2]
[350906625,1738183848717,-500.0,0.0001726,2]
[350906627,1738183848727,-510.04,0.0001726,2]
[350906629,1738183848736,-500.0,0.0001726,2]
[350906631,1738183848746,-500.0,0.0001726,2]
[350906633,1738183848756,-1558.37,0.0001726,2]
[350906635,1738183848765,-500.0,0.0001726,2]
[350906637,1738183848775,-500.0,0.0001726,2]
[350906639,1738183848786,-535.11,0.0001726,2]
[350906641,1738183848795,-151.0,0.0001726,2]
[350906653,1738183848895,-151.0,0.0001726,2]
[350906655,1738183848911,-2238.95375162,0.0001726,2]
[350906657,1738183848923,-3794.64624838,0.0001726,2]
[350906659,1738183848934,-8526.14,0.0001726,2]
[350906661,1738183848943,-500.0,0.0001726,2]
[350906663,1738183848954,-523.18,0.0001726,2]
[350906665,1738183848963,-9708.38,0.0001726,2]
[350906667,1738183848973,-1316.49,0.0001726,2]
[350906669,1738183848983,-2933.43,0.0001726,2]
[350906671,1738183848993,-3883.59,0.0001726,2]
[350906673,1738183849002,-703.57,0.0001726,2]
[350906675,1738183849012,-2749.65,0.0001726,2]
[350906677,1738183849021,-500.0,0.0001726,2]
[350906679,1738183849030,-618.36,0.0001726,2]
[350906681,1738183849039,-500.0,0.0001726,2]
[350906683,1738183849049,-1156.66,0.0001726,2]
[350906685,1738183849058,-625.82,0.0001726,2]
[350906687,1738183849067,-500.0,0.0001726,2]
[350906689,1738183849077,-151.0,0.0001726,2]
[350906691,1738183849087,-1866.12,0.0001726,2]
[350906693,1738183849097,-748.16,0.0001726,2]
[350906695,1738183849109,-728.59,0.0001726,2]
[350906697,1738183849122,-382.50488636,0.0001726,2]
[350906699,1738183849138,-117.49511364,0.0001726,2]
[350906701,1738183849153,-182.17178194,0.0001726,2]
[350906704,1738183849173,-18.58347806,0.0001726,2]
[350906706,1738183849182,-545.33,0.0001726,2]
[350906708,1738183849194,-37.22619282,0.0001726,2]
[350906710,1738183849206,-1646.13380718,0.0001726,2]
[350906712,1738183849216,-200.75526,0.0001726,2]
[350906714,1738183849225,-497.72679482,0.0001726,2]
[350906716,1738183849237,-295.12320518,0.0001726,2]
[350906718,1738183849246,-2099.15,0.0001726,2]
[350906721,1738183849256,-736.87,0.0001726,2]
[350906723,1738183849266,-4550.03598841,0.0001726,2]
[350906725,1738183849277,-1938.3292441,0.0001726,2]
[350906727,1738183849288,-943.2152442,0.0001726,2]
[350906729,1738183849300,-1580.43952329,0.0001726,2]
[350906731,1738183849310,-3107.3,0.0001726,2]
[350906733,1738183849319,-590.39,0.0001726,2]
[350906735,1738183849328,-1443.38044296,0.0001726,2]
[350906737,1738183849340,-5029.65795576,0.0001726,2]
[350906739,1738183849351,-1398.805238,0.0001726,2]
[350906742,1738183849362,-970.77960543,0.0001726,2]
[350906759,1738183849526,-398.8765751,0.00015334,2]
[350906761,1738183849535,-115.98519482,0.0001726,2]
[350906766,1738183849565,-218.66621264,0.0001726,2]
[350906768,1738183849576,-277.28315716,0.0001726,2]
[350906770,1738183849587,-6102.15590751,0.0001726,2]
[350906772,1738183849598,-6276.0,0.0001726,2]
[350906774,1738183849609,-631.66000005,0.0001726,2]
[350908074,1738183871625,230.811268,0.00013699,2]
[350908091,1738184241956,1960.95162687,0.0001511,2]
[350908093,1738184252385,161.483076,0.00013973,2]
[350908094,1738184279613,5000.0,0.0001511,2]
[350908095,1738184287486,1764.60374102,0.0001511,2]
[350908096,1738184324624,3804.36964735,0.0001511,2]
[350908097,1738184332494,1602.72873476,0.0001511,2]
[350908098,1738184332528,1632.66752422,0.0001511,2]
[350908099,1738184362553,4360.54809863,0.0001511,2]
[350908100,1738184367769,602.76,0.00010959,2]
[350908101,1738184370877,181.985,0.0001511,2]
[350908102,1738184386777,5000.0,0.0001511,2]
[350908103,1738184409132,5000.0,0.0001511,2]
[350908104,1738184431442,813.74181212,0.0001511,2]
[350908105,1738184439812,2408.29756503,0.0001511,2]
[350908106,1738184439847,801.36876165,0.0001511,2]
[350908107,1738184470310,926.60216333,0.0001511,2]
[350908108,1738184720699,255.895148,0.00013699,2]
[350908157,1738185032209,-449.57,0.00015255,2]
[350908158,1738185032267,-650.84243801,0.00015255,2]
[350908800,1738185039995,-14.95176389,0.00015255,2]
[350908802,1738185040005,-307.82206668,0.000155,2]
[350908804,1738185040019,-169.75058313,0.00015514,2]
[350908807,1738185040036,-130.24941687,0.00015514,2]
[350908809,1738185040051,-1555.74678076,0.00015515,2]
[350909102,1738185042890,-7747.72557774,0.00015515,2]
[350909105,1738185042902,-500.0,0.00015654,2]
[350909107,1738185042913,-150.0,0.000164,2]
[350909109,1738185042928,-500.0,0.00016437,2]
[350909111,1738185042938,-500.0,0.00016437,2]
[350909113,1738185042949,-500.0,0.00016437,2]
[350909115,1738185042960,-500.0,0.00016437,2]
[350909117,1738185042972,-500.0,0.00016437,2]
[350909121,1738185042983,-500.0,0.00016437,2]
[350909125,1738185042995,-160.75713083,0.00016437,2]
[350909127,1738185043006,-500.0,0.00016437,2]
[350909129,1738185043018,-517.00194657,0.00016437,2]
[350909131,1738185043030,-500.0,0.00016437,2]
[350909134,1738185043041,-500.0,0.00016438,2]
[350909136,1738185043052,-500.0,0.00016438,2]
[350909138,1738185043064,-500.0,0.00016438,2]
[350909140,1738185043075,-500.0,0.00016438,2]
[350909142,1738185043086,-66.33056956,0.00016438,2]
[350909145,1738185043100,-433.66943044,0.00016438,2]
[350909147,1738185043112,-500.0,0.00016438,2]
[350909149,1738185043123,-500.0,0.00016438,2]
[350909151,1738185043134,-504.91999797,0.00016438,2]
[350909154,1738185043146,-500.0,0.00016438,2]
[350909156,1738185043157,-500.0,0.00016438,2]
[350909158,1738185043167,-201.81057157,0.00016438,2]
[350909160,1738185043185,-298.18942843,0.00016438,2]
[350909163,1738185043197,-30.70549971,0.00016438,2]
[350909166,1738185043218,-469.29450029,0.00016438,2]
[350909168,1738185043230,-500.0,0.00016438,2]
[350909170,1738185043241,-31.45837405,0.00016438,2]
[350909419,1738185045868,-468.54162595,0.00016438,2]
[350909421,1738185045877,-563.97,0.00016438,2]
[350909423,1738185045887,-500.0,0.00016438,2]
[350909425,1738185045897,-500.0,0.00016438,2]
[350909427,1738185045906,-277.51244205,0.00016438,2]
[350909435,1738185045984,-222.48755795,0.00016438,2]
[350909437,1738185045994,-500.0,0.00016438,2]
[350909439,1738185046003,-524.22,0.00016438,2]
[350909441,1738185046012,-500.0,0.00016438,2]
[350909443,1738185046021,-500.0,0.00016438,2]
[350909445,1738185046031,-529.01,0.00016438,2]
[350909447,1738185046040,-63.82676205,0.00016438,2]
[350909596,1738185070796,180.666533,0.00013973,2]
[350909601,1738185187117,1157.82342018,0.00015101,2]
[350909602,1738185365042,445.12746209,0.00015101,2]
[350909603,1738185565990,204.716118,0.00013699,2]
[350909614,1738186020571,171.633206,0.00013973,2]
[350909696,1738186232236,-500.0,0.00015471,2]
[350909697,1738186232246,-300.0,0.00015499,2]
[350909698,1738186232257,-16559.80021395,0.000155,2]
[350909699,1738186232269,-3364.51154193,0.000155,2]
[350909700,1738186232279,-4108.87867734,0.00016337,5]
[350909701,1738186232289,-224.91591507,0.00016338,2]
[350909702,1738186232299,-500.0,0.00016437,2]
[350909703,1738186232308,-185.60653238,0.00016437,2]
[350909704,1738186232318,-501.23271537,0.00016438,2]
[350909705,1738186232328,-502.38,0.00016438,2]
[350909706,1738186232338,-376.81773539,0.00016438,2]
[350909707,1738186232347,-500.0,0.00016438,2]
[350909708,1738186232357,-500.0,0.00016438,2]
[350909709,1738186232367,-500.0,0.00016438,2]
[350909710,1738186232376,-500.0,0.00016438,2]
[350909711,1738186232386,-228.28601271,0.00016438,2]
[350909712,1738186232395,-363.04706565,0.00016438,2]
[350909714,1738186232405,-501.12604377,0.00016438,2]
[350909716,1738186232414,-500.0,0.00016438,2]
[350909718,1738186232423,-501.00986453,0.00016438,2]
[350909720,1738186232433,-500.0,0.00016438,2]
[350909722,1738186232442,-500.0,0.00016438,2]
[350909724,1738186232452,-259.27257556,0.00016438,2]
[350909726,1738186232461,-501.4970045,0.00016438,2]
[350909727,1738186232470,-500.0,0.00016438,2]
[350909729,1738186232480,-500.0,0.00016438,2]
[350909731,1738186232491,-500.0,0.00016438,2]
[350909733,1738186232500,-187.90687051,0.00016438,2]
[350909735,1738186232509,-500.0,0.00016438,2]
[350909737,1738186232518,-500.0,0.00016438,2]
[350909739,1738186232528,-500.0,0.00016438,2]
[350909741,1738186232538,-500.0,0.00016438,2]
[350909743,1738186232548,-500.0,0.00016438,2]
[350909744,1738186232558,-500.0,0.00016438,2]
[350909746,1738186232567,-561.31,0.00016438,2]
[350909748,1738186232576,-500.0,0.00016438,2]
[350909750,1738186232585,-500.0,0.00016438,2]
[350909752,1738186232595,-501.47475621,0.00016438,2]
[350909754,1738186232605,-507.44729102,0.00016438,2]
[350909756,1738186232615,-501.57378649,0.00016438,2]
[350909758,1738186232625,-502.89869813,0.00016438,2]
[350909760,1738186232634,-500.78059609,0.00016438,2]
[350909762,1738186232646,-500.0,0.00016438,2]
[350909764,1738186232656,-500.0,0.00016438,2]
[350909766,1738186232666,-500.0,0.00016438,2]
[350909768,1738186232675,-500.0,0.00016438,2]
[350909770,1738186232685,-500.0,0.00016438,2]
[350909789,1738186232849,-500.0,0.00016438,2]
[350909791,1738186232859,-824.04,0.00016438,2]
[350909793,1738186232871,-500.0,0.00016438,2]
[350909795,1738186232883,-500.0,0.00016438,2]
[350909796,1738186232895,-500.0,0.00016438,2]
[350909799,1738186232904,-500.0,0.00016438,2]
[350909800,1738186232915,-506.97,0.00016438,2]
[350909802,1738186232926,-500.0,0.00016438,2]
[350909804,1738186232938,-500.0,0.00016438,2]
[350909807,1738186232948,-500.0,0.00016438,2]
[350909808,1738186232958,-500.0,0.00016438,2]
[350909810,1738186232968,-500.0,0.00016438,2]
[350909812,1738186232977,-1103.85,0.00016438,2]
[350909814,1738186232988,-500.0,0.00016438,2]
[350909816,1738186232997,-500.0,0.00016438,2]
[350909818,1738186233007,-500.0,0.00016438,2]
[350909820,1738186233017,-500.0,0.00016438,2]
[350909822,1738186233026,-932.51,0.00016438,2]
[350909823,1738186233036,-500.0,0.00016438,2]
[350909825,1738186233045,-502.13,0.00016438,2]
[350909826,1738186233054,-500.0,0.00016438,2]
[350909828,1738186233064,-508.24229093,0.00016438,2]
[350909830,1738186233074,-500.0,0.00016438,2]
[350909832,1738186233084,-7697.71,0.00016438,2]
[350909833,1738186233093,-500.0,0.00016438,2]
[350909834,1738186233102,-2959.21,0.00016438,2]
[350909836,1738186233111,-1503.39,0.00016438,2]
[350909837,1738186233121,-500.0,0.00016438,2]
[350909839,1738186233130,-4705.22,0.00016438,2]
[350909840,1738186233140,-1947.67,0.00016438,2]
[350909841,1738186233150,-819.3,0.00016438,2]
[350909842,1738186233159,-500.0,0.00016438,2]
[350909843,1738186233169,-563.61,0.00016438,2]
[350909844,1738186233179,-2286.18,0.00016438,2]
[350909845,1738186233189,-500.0,0.00016438,2]
[350909846,1738186233199,-500.0,0.00016438,2]
[350909847,1738186233208,-216.37,0.00016438,2]
[350909848,1738186233217,-186.8,0.00016438,2]
[350909849,1738186233227,-500.0,0.00016438,2]
[350909850,1738186233239,-1192.38,0.00016438,2]
[350909851,1738186233249,-23852.27,0.00016438,2]
[350909852,1738186233258,-500.0,0.00016438,2]
[350909853,1738186233268,-561.6,0.00016438,2]
[350909854,1738186233278,-529.94,0.00016438,2]
[350909855,1738186233287,-6887.13,0.00016438,2]
[350909856,1738186233297,-1212.58,0.00016438,2]
[350909857,1738186233307,-1536.63,0.00016438,2]
[350909858,1738186233317,-646.76,0.00016438,2]
[350909859,1738186233327,-2389.53,0.00016438,2]
[350909860,1738186233337,-516.09,0.00016438,2]
[350909861,1738186233347,-834.28,0.00016438,2]
[350909862,1738186233357,-500.0,0.00016438,2]
[350909863,1738186233366,-702.9,0.00016438,2]
[350909864,1738186233376,-500.0,0.00016438,2]
[350909865,1738186233386,-500.0,0.00016438,2]
[350909866,1738186233396,-500.0,0.00016438,2]
[350909867,1738186233405,-1887.78,0.00016438,2]
[350909868,1738186233415,-2036.93,0.00016438,2]
[350909869,1738186233425,-770.97,0.00016438,2]
[350909870,1738186233434,-924.28,0.00016438,2]
[350909871,1738186233445,-500.0,0.00016438,2]
[350909872,1738186233454,-759.26,0.00016438,2]
[350909873,1738186233464,-890.38,0.00016438,2]
[350909874,1738186233474,-500.0,0.00016438,2]
[350909875,1738186233497,-500.0,0.00016438,2]
[350909876,1738186233508,-545.07,0.00016438,2]
[350909877,1738186233519,-500.0,0.00016438,2]
[350909878,1738186233531,-1076.83,0.00016438,2]
[350909879,1738186233541,-921.41,0.00016438,2]
[350909880,1738186233552,-500.0,0.00016438,2]
[350909881,1738186233563,-500.0,0.00016438,2]
[350909882,1738186233573,-500.0,0.00016438,2]
[350909883,1738186233584,-6101.84,0.00016438,2]
[350909884,1738186233594,-2792.51,0.00016438,2]
[350909885,1738186233604,-931.61,0.00016438,2]
[350909886,1738186233615,-500.0,0.00016438,2]
[350909887,1738186233625,-500.0,0.00016438,2]
[350909888,1738186233636,-642.02514157,0.00016574,2]
[350909889,1738186233647,-502.38,0.00016575,2]
[350909890,1738186233658,-150.739,0.00016575,2]
[350909891,1738186233667,-500.0,0.00016575,2]
[350909892,1738186233677,-500.0,0.00016575,2]
[350909893,1738186233687,-500.0,0.00016575,2]
[350909894,1738186233698,-500.0,0.00016575,2]
[350909895,1738186233708,-500.0,0.00016575,2]
[350909896,1738186233718,-500.0,0.00016575,2]
[350909897,1738186233729,-561.31,0.00016575,2]
[350909898,1738186233740,-500.0,0.00016575,2]
[350909899,1738186233750,-500.0,0.00016575,2]
[350909900,1738186233760,-824.04,0.00016575,2]
[350909901,1738186233771,-500.0,0.00016575,2]
[350909902,1738186233781,-500.0,0.00016575,2]
[350909903,1738186233791,-500.0,0.00016575,2]
[350909904,1738186233802,-500.0,0.00016575,2]
[350909905,1738186233812,-506.97,0.00016575,2]
[350909906,1738186233822,-500.0,0.00016575,2]
[350909907,1738186233832,-500.0,0.00016575,2]
[350909908,1738186233842,-500.0,0.00016575,2]
[350909909,1738186233852,-500.0,0.00016575,2]
[350909910,1738186233863,-500.0,0.00016575,2]
[350909911,1738186233877,-1103.85,0.00016575,2]
[350909912,1738186233888,-500.0,0.00016575,2]
[350909913,1738186233898,-500.0,0.00016575,2]
[350909914,1738186233909,-500.0,0.00016575,2]
[350909915,1738186233919,-500.0,0.00016575,2]
[350909916,1738186233929,-932.51,0.00016575,2]
[350909917,1738186233939,-500.0,0.00016575,2]
[350909918,1738186233951,-502.13,0.00016575,2]
[350909919,1738186233960,-500.0,0.00016575,2]
[350909920,1738186233970,-500.0,0.00016575,2]
[350909921,1738186233980,-7697.71,0.00016575,2]
[350909922,1738186233990,-500.0,0.00016575,2]
[350909923,1738186234001,-2959.21,0.00016575,2]
[350909924,1738186234011,-1503.39,0.00016575,2]
[350909925,1738186234021,-500.0,0.00016575,2]
[350909926,1738186234031,-4705.22,0.00016575,2]
[350909927,1738186234040,-1947.67,0.00016575,2]
[350909928,1738186234050,-819.3,0.00016575,2]
[350909929,1738186234060,-500.0,0.00016575,2]
[350909930,1738186234071,-563.61,0.00016575,2]
[350909931,1738186234080,-2286.18,0.00016575,2]
[350909932,1738186234090,-500.0,0.00016575,2]
[350909933,1738186234099,-500.0,0.00016575,2]
[350909934,1738186234109,-500.0,0.00016575,2]
[350909935,1738186234119,-1192.38,0.00016575,2]
[350909936,1738186234129,-8699.74173316,0.00016575,2]
[350909937,1738186234179,-15152.52826684,0.00016575,2]
[350909938,1738186234189,-500.0,0.00016575,2]
[350909939,1738186234199,-561.6,0.00016575,2]
[350909940,1738186234209,-529.94,0.00016575,2]
[350909941,1738186234219,-5961.48833997,0.00016575,2]
[350909942,1738186234241,-925.64166003,0.00016575,2]
[350909943,1738186234251,-1212.58,0.00016575,2]
[350909944,1738186234261,-1536.63,0.00016575,2]
[350909945,1738186234273,-646.76,0.00016575,2]
[350909946,1738186234283,-2389.53,0.00016575,2]
[350909947,1738186234293,-516.09,0.00016575,2]
[350909948,1738186234303,-834.28,0.00016575,2]
[350909949,1738186234313,-500.0,0.00016575,2]
[350909950,1738186234323,-375.15397453,0.00016575,2]
[350909951,1738186234340,-327.74602547,0.00016575,2]
[350909952,1738186234350,-1887.78,0.00016575,2]
[350909953,1738186234361,-2036.93,0.00016575,2]
[350909954,1738186234371,-770.97,0.00016575,2]
[350909955,1738186234381,-924.28,0.00016575,2]
[350909956,1738186234391,-500.0,0.00016575,2]
[350909957,1738186234402,-759.26,0.00016575,2]
[350909958,1738186234411,-890.38,0.00016575,2]
[350909959,1738186234421,-151.0,0.00016575,2]
[350909960,1738186234432,-500.0,0.00016575,2]
[350909961,1738186234442,-151.0,0.00016575,2]
[350909962,1738186234452,-500.0,0.00016575,2]
[350909963,1738186234462,-151.0,0.00016575,2]
[350909964,1738186234472,-545.07,0.00016575,2]
[350909965,1738186234484,-500.0,0.00016575,2]
[350909966,1738186234495,-1076.83,0.00016575,2]
[350909967,1738186234504,-921.41,0.00016575,2]
[350909968,1738186234514,-151.0,0.00016575,2]
[350909969,1738186234524,-500.0,0.00016575,2]
[350909970,1738186234533,-500.0,0.00016575,2]
[350909971,1738186234543,-500.0,0.00016575,2]
[350909972,1738186234553,-6101.84,0.00016575,2]
[350909973,1738186234563,-2792.51,0.00016575,2]
[350909974,1738186234573,-931.61,0.00016575,2]
[350909975,1738186234583,-500.0,0.00016575,2]
[350909976,1738186234592,-238.35745991,0.00016575,2]
[350909977,1738186234605,-261.64254009,0.00016575,2]
[350909978,1738186234615,-500.0,0.0001658,2]
[350909979,1738186234626,-499.9999991,0.00016678,2]
[350909980,1738186234636,-1621.21,0.000167,2]
[350909981,1738186234645,-502.38,0.00016712,2]
[350909982,1738186234656,-500.0,0.00016712,2]
[350909983,1738186234665,-151.918599,0.00016712,2]
[350909984,1738186234676,-500.0,0.00016712,2]
[350909985,1738186234685,-151.0,0.00016712,2]
[350909986,1738186234696,-151.0,0.00016712,2]
[350909987,1738186234706,-29.34148112,0.00016712,2]
[350909988,1738186234719,-121.65851888,0.00016712,2]
[350909989,1738186234729,-500.0,0.00016712,2]
[350909990,1738186234738,-500.0,0.00016712,2]
[350909991,1738186234747,-500.0,0.00016712,2]
[350909992,1738186234757,-500.0,0.00016712,2]
[350909993,1738186234768,-151.0,0.00016712,2]
[350909994,1738186234778,-561.31,0.00016712,2]
[350909995,1738186234789,-229.08730123,0.00016712,2]
[350909996,1738186234801,-270.91269877,0.00016712,2]
[350909997,1738186234811,-500.0,0.00016712,2]
[350909998,1738186234821,-228.79397043,0.00016712,2]
[350910006,1738186238161,-854.8,0.00016438,2]
[350910007,1738186238171,-854.8,0.00016575,2]
[350910008,1738186238181,-595.24602957,0.00016712,2]
[350910009,1738186238190,-500.0,0.00016712,2]
[350910010,1738186238200,-500.0,0.00016712,2]
[350910011,1738186238209,-500.0,0.00016712,2]
[350910012,1738186238219,-500.0,0.00016712,2]
[350910013,1738186238229,-506.97,0.00016712,2]
[350910014,1738186238238,-500.0,0.00016712,2]
[350910015,1738186238248,-500.0,0.00016712,2]
[350910016,1738186238257,-151.0,0.00016712,2]
[350910017,1738186238267,-151.0,0.00016712,2]
[350910018,1738186238277,-500.0,0.00016712,2]
[350910019,1738186238286,-151.0,0.00016712,2]
[350910020,1738186238296,-500.0,0.00016712,2]
[350910021,1738186238306,-500.0,0.00016712,2]
[350910022,1738186238316,-81.11008848,0.00016712,2]
[350910072,1738186240360,-576.86,0.00016438,2]